[Event "Titled Tuesday Blitz November 07 Early 2023"]
[White "Melian, Juan Sebastian"]
[Black "Witty_Alien"]
[WhiteFideId "3706575"]
[WhiteElo "2659"]
[BlackElo "2252"]
[Result "1-0"]
[Round "4"]
[TimeControl "180+1"]
[Date "2023.11.07"]
[WhiteClock "0:00:10"]
[BlackClock "0:00:02"]
[Board "105"]

1. d4 {[%clk 0:02:56]}  e5 {[%clk 0:02:59]} 2. dxe5 {[%clk 0:02:46]}  d6 {[%clk 0:03:00]} 3. Nf3 {[%clk 0:02:44]}  Nc6 {[%clk 0:03:00]} 4. exd6 {[%clk 0:02:40]}  Bxd6 {[%clk 0:03:00]} 5. e4 {[%clk 0:02:40]}  Nf6 {[%clk 0:02:58]} 6. Bd3 {[%clk 0:02:38]}  Bg4 {[%clk 0:02:56]} 7. h3 {[%clk 0:02:37]}  Be6 {[%clk 0:02:50]} 8. Qe2 {[%clk 0:02:33]}  Qd7 {[%clk 0:02:49]} 9. e5 {[%clk 0:02:31]}  Bb4+ {[%clk 0:02:23]} 10. c3 {[%clk 0:02:28]}  O-O-O {[%clk 0:02:11]} 11. exf6 {[%clk 0:02:07]}  Rhe8 {[%clk 0:02:08]} 12. Be3 {[%clk 0:02:00]}  gxf6 {[%clk 0:01:10]} 13. O-O {[%clk 0:01:37]}  Bxh3 {[%clk 0:01:03]} 14. Nh4 {[%clk 0:00:17]}  Rg8 {[%clk 0:00:52]} 15. g3 {[%clk 0:00:13]}  Bd6 {[%clk 0:00:45]} 16. Kh2 {[%clk 0:00:11]}  Ne5 {[%clk 0:00:28]} 17. Be4 {[%clk 0:00:10]}  Kb8 {[%clk 0:00:20]} 18. Re1 {[%clk 0:00:07]}  Rg4 {[%clk 0:00:18]} 19. Bf5 {[%clk 0:00:06]}  Rxh4 {[%clk 0:00:18]} 20. Bxd7 {[%clk 0:00:06]}  Bg4+ {[%clk 0:00:07]} 21. gxh4 {[%clk 0:00:06]}  Nf3+ {[%clk 0:00:06]} 22. Kg2 {[%clk 0:00:05]}  Nxh4+ {[%clk 0:00:04]} 23. Kg1 {[%clk 0:00:04]}  Bxe2 {[%clk 0:00:02]} 24. Rxe2 {[%clk 0:00:04]}  Rxd7 {[%clk 0:00:03]} 25. Nd2 {[%clk 0:00:04]}  Rd8 {[%clk 0:00:03]} 26. f4 {[%clk 0:00:04]}  Re8 {[%clk 0:00:03]} 27. Kf2 {[%clk 0:00:04]}  Nf5 {[%clk 0:00:02]} 28. Rg1 {[%clk 0:00:05]}  Nxe3 {[%clk 0:00:02]} 29. Rge1 {[%clk 0:00:04]}  Bc5 {[%clk 0:00:03]} 30. Kf3 {[%clk 0:00:05]}  Rd8 {[%clk 0:00:02]} 31. Rxe3 {[%clk 0:00:04]}  Bxe3 {[%clk 0:00:02]} 32. Kxe3 {[%clk 0:00:05]}  Re8+ {[%clk 0:00:02]} 33. Kf2 {[%clk 0:00:05]}  Rd8 {[%clk 0:00:03]} 34. Re2 {[%clk 0:00:06]}  b5 {[%clk 0:00:02]} 35. Ne4 {[%clk 0:00:06]}  f5 {[%clk 0:00:02]} 36. Ng5 {[%clk 0:00:06]}  f6 {[%clk 0:00:01]} 37. Nxh7 {[%clk 0:00:06]}  Rd6 {[%clk 0:00:02]} 38. Nf8 {[%clk 0:00:06]}  Ra6 {[%clk 0:00:01]} 39. a3 {[%clk 0:00:06]}  Ra4 {[%clk 0:00:01]} 40. Nd7+ {[%clk 0:00:06]}  Kb7 {[%clk 0:00:01]} 41. Nc5+ {[%clk 0:00:07]}  Kb6 {[%clk 0:00:01]} 42. Nxa4+ {[%clk 0:00:08]}  Ka5 {[%clk 0:00:01]} 43. Nc5 {[%clk 0:00:08]}  c6 {[%clk 0:00:02]} 44. b4+ {[%clk 0:00:08]}  Kb6 {[%clk 0:00:02]} 45. Re7 {[%clk 0:00:09]}  a6 {[%clk 0:00:02]} 46. Rb7# {[%clk 0:00:10]} 1-0


[Site "https://www.chess.com"]

[Event "Titled Tuesday Blitz November 07 Early 2023"]
[White "Skuhala, Barbara"]
[Black "Skliarov, Viktor"]
[WhiteFideId "14605465"]
[BlackFideId "14106736"]
[WhiteElo "2238"]
[BlackElo "2659"]
[Result "0-1"]
[Round "4"]
[TimeControl "180+1"]
[Date "2023.11.07"]
[WhiteClock "0:00:02"]
[BlackClock "0:00:04"]
[Board "106"]

1. e4 {[%clk 0:03:00]}  c5 {[%clk 0:02:59]} 2. Nf3 {[%clk 0:02:58]}  Nc6 {[%clk 0:02:59]} 3. Nc3 {[%clk 0:02:55]}  Nf6 {[%clk 0:02:59]} 4. d4 {[%clk 0:02:55]}  cxd4 {[%clk 0:03:00]} 5. Nxd4 {[%clk 0:02:54]}  e5 {[%clk 0:03:00]} 6. Ndb5 {[%clk 0:02:54]}  d6 {[%clk 0:03:00]} 7. Bg5 {[%clk 0:02:53]}  a6 {[%clk 0:02:59]} 8. Na3 {[%clk 0:02:52]}  b5 {[%clk 0:02:59]} 9. Bxf6 {[%clk 0:02:52]}  gxf6 {[%clk 0:02:59]} 10. Nd5 {[%clk 0:02:52]}  f5 {[%clk 0:02:59]} 11. g3 {[%clk 0:02:52]}  fxe4 {[%clk 0:02:52]} 12. Bg2 {[%clk 0:02:52]}  Bg7 {[%clk 0:02:52]} 13. O-O {[%clk 0:02:49]}  O-O {[%clk 0:02:50]} 14. Bxe4 {[%clk 0:02:41]}  f5 {[%clk 0:02:50]} 15. Bg2 {[%clk 0:02:41]}  Be6 {[%clk 0:02:33]} 16. Qh5 {[%clk 0:02:26]}  Rc8 {[%clk 0:02:09]} 17. c3 {[%clk 0:02:25]}  Kh8 {[%clk 0:02:04]} 18. Rad1 {[%clk 0:02:23]}  Ne7 {[%clk 0:02:03]} 19. Nxe7 {[%clk 0:02:18]}  Qxe7 {[%clk 0:02:04]} 20. Bd5 {[%clk 0:02:18]}  Rc5 {[%clk 0:01:54]} 21. Bxe6 {[%clk 0:01:57]}  Qxe6 {[%clk 0:01:55]} 22. Qe2 {[%clk 0:01:55]}  Qxa2 {[%clk 0:01:44]} 23. Rxd6 {[%clk 0:01:53]}  Rxc3 {[%clk 0:01:34]} 24. Rxa6 {[%clk 0:01:52]}  Rb3 {[%clk 0:01:34]} 25. Ra7 {[%clk 0:01:44]}  Rxb2 {[%clk 0:01:17]} 26. Qh5 {[%clk 0:01:37]}  b4 {[%clk 0:01:02]} 27. Nb5 {[%clk 0:01:35]}  Qd5 {[%clk 0:01:01]} 28. Nc7 {[%clk 0:01:17]}  Qf7 {[%clk 0:00:59]} 29. Qg5 {[%clk 0:00:54]}  e4 {[%clk 0:00:51]} 30. Rd1 {[%clk 0:00:43]}  Qf6 {[%clk 0:00:44]} 31. Qxf6 {[%clk 0:00:32]}  Bxf6 {[%clk 0:00:41]} 32. Ne6 {[%clk 0:00:31]}  Rc8 {[%clk 0:00:22]} 33. Rf7 {[%clk 0:00:26]}  Be5 {[%clk 0:00:06]} 34. Rdd7 {[%clk 0:00:24]}  e3 {[%clk 0:00:05]} 35. Ng5 {[%clk 0:00:16]}  e2 {[%clk 0:00:03]} 36. Nf3 {[%clk 0:00:10]}  Rb1+ {[%clk 0:00:03]} 37. Kg2 {[%clk 0:00:10]}  e1=Q {[%clk 0:00:04]} 38. Nxe1 {[%clk 0:00:09]}  Rxe1 {[%clk 0:00:05]} 39. Rxh7+ {[%clk 0:00:09]}  Kg8 {[%clk 0:00:05]} 40. Rhe7 {[%clk 0:00:09]}  Rb8 {[%clk 0:00:04]} 41. h4 {[%clk 0:00:06]}  b3 {[%clk 0:00:04]} 42. f4 {[%clk 0:00:06]}  Bc3 {[%clk 0:00:04]} 43. Rh7 {[%clk 0:00:02]}  b2 {[%clk 0:00:04]} 0-1


[Site "https://www.chess.com"]

[Event "Titled Tuesday Blitz November 07 Early 2023"]
[White "Yelisieiev, Yevhenii"]
[Black "missponyo10"]
[WhiteFideId "14139642"]
[WhiteElo "2658"]
[BlackElo "2022"]
[Result "1-0"]
[Round "4"]
[TimeControl "180+1"]
[Date "2023.11.07"]
[WhiteClock "0:00:55"]
[BlackClock "0:00:05"]
[Board "107"]

1. d4 {[%clk 0:03:00]}  d5 {[%clk 0:02:58]} 2. Nf3 {[%clk 0:03:01]}  c6 {[%clk 0:02:58]} 3. c4 {[%clk 0:03:01]}  Nf6 {[%clk 0:02:58]} 4. Nc3 {[%clk 0:03:02]}  e6 {[%clk 0:02:58]} 5. Bg5 {[%clk 0:03:02]}  h6 {[%clk 0:02:56]} 6. Bh4 {[%clk 0:03:02]}  dxc4 {[%clk 0:02:56]} 7. e3 {[%clk 0:02:54]}  g5 {[%clk 0:02:54]} 8. Bg3 {[%clk 0:02:55]}  b5 {[%clk 0:02:54]} 9. h4 {[%clk 0:02:54]}  g4 {[%clk 0:02:50]} 10. Ne5 {[%clk 0:02:55]}  h5 {[%clk 0:02:46]} 11. Be2 {[%clk 0:02:51]}  Bd6 {[%clk 0:02:44]} 12. O-O {[%clk 0:02:51]}  Bxe5 {[%clk 0:02:41]} 13. dxe5 {[%clk 0:02:48]}  Qxd1 {[%clk 0:02:31]} 14. Rfxd1 {[%clk 0:02:47]}  Nd5 {[%clk 0:02:32]} 15. Ne4 {[%clk 0:02:47]}  Na6 {[%clk 0:02:22]} 16. a4 {[%clk 0:02:30]}  Nac7 {[%clk 0:01:52]} 17. Nd6+ {[%clk 0:02:29]}  Ke7 {[%clk 0:01:51]} 18. e4 {[%clk 0:02:23]}  Nb6 {[%clk 0:01:41]} 19. axb5 {[%clk 0:02:20]}  cxb5 {[%clk 0:01:40]} 20. Bf4 {[%clk 0:02:20]}  Bd7 {[%clk 0:01:19]} 21. Bg5+ {[%clk 0:02:14]}  Kf8 {[%clk 0:01:18]} 22. Ra5 {[%clk 0:02:07]}  Bc6 {[%clk 0:01:13]} 23. Be3 {[%clk 0:01:53]}  Nd7 {[%clk 0:01:09]} 24. Bxa7 {[%clk 0:01:43]}  Nxe5 {[%clk 0:01:05]} 25. Bb6 {[%clk 0:01:36]}  Rxa5 {[%clk 0:01:03]} 26. Bxa5 {[%clk 0:01:36]}  Ne8 {[%clk 0:00:56]} 27. Bc3 {[%clk 0:01:33]}  f6 {[%clk 0:00:53]} 28. f4 {[%clk 0:01:20]}  gxf3 {[%clk 0:00:50]} 29. gxf3 {[%clk 0:01:21]}  Rg8+ {[%clk 0:00:47]} 30. Kf2 {[%clk 0:01:17]}  Bd7 {[%clk 0:00:29]} 31. Bxe5 {[%clk 0:01:12]}  fxe5 {[%clk 0:00:29]} 32. Nxc4 {[%clk 0:01:09]}  bxc4 {[%clk 0:00:29]} 33. Rxd7 {[%clk 0:01:09]}  Rg7 {[%clk 0:00:23]} 34. Rxg7 {[%clk 0:01:08]}  Nxg7 {[%clk 0:00:23]} 35. Bxc4 {[%clk 0:01:09]}  Ke7 {[%clk 0:00:23]} 36. Ke3 {[%clk 0:01:06]}  Kd6 {[%clk 0:00:23]} 37. b4 {[%clk 0:01:04]}  Ne8 {[%clk 0:00:22]} 38. f4 {[%clk 0:01:02]}  Nf6 {[%clk 0:00:18]} 39. b5 {[%clk 0:00:57]}  Ng4+ {[%clk 0:00:17]} 40. Kf3 {[%clk 0:00:57]}  Nh2+ {[%clk 0:00:16]} 41. Kg2 {[%clk 0:00:57]}  Ng4 {[%clk 0:00:16]} 42. Kg3 {[%clk 0:00:56]}  exf4+ {[%clk 0:00:11]} 43. Kxf4 {[%clk 0:00:56]}  e5+ {[%clk 0:00:09]} 44. Kg5 {[%clk 0:00:57]}  Nf2 {[%clk 0:00:09]} 45. Bd5 {[%clk 0:00:56]}  Kc5 {[%clk 0:00:09]} 46. Bc6 {[%clk 0:00:55]}  Nd3 {[%clk 0:00:07]} 47. Kxh5 {[%clk 0:00:55]}  Nf4+ {[%clk 0:00:07]} 48. Kg4 {[%clk 0:00:55]}  Ng6 {[%clk 0:00:05]} 49. h5 {[%clk 0:00:55]}  Ne7 {[%clk 0:00:05]} 50. h6 {[%clk 0:00:55]}  Nxc6 {[%clk 0:00:04]} 51. bxc6 {[%clk 0:00:55]}  Kxc6 {[%clk 0:00:05]} 52. h7 {[%clk 0:00:55]} 1-0


[Site "https://www.chess.com"]

[Event "Titled Tuesday Blitz November 07 Early 2023"]
[White "Perez Cruz, Adianet"]
[Black "Souleidis, Georgios"]
[WhiteFideId "3510115"]
[BlackFideId "4206827"]
[WhiteElo "1966"]
[BlackElo "2615"]
[Result "1/2-1/2"]
[Round "4"]
[TimeControl "180+1"]
[Date "2023.11.07"]
[WhiteClock "0:00:22"]
[BlackClock "0:00:02"]
[Board "108"]

1. d4 {[%clk 0:03:00]}  Nf6 {[%clk 0:02:56]} 2. Bg5 {[%clk 0:03:00]}  d5 {[%clk 0:02:54]} 3. e3 {[%clk 0:02:58]}  c5 {[%clk 0:02:54]} 4. c3 {[%clk 0:02:58]}  Ne4 {[%clk 0:02:48]} 5. Bf4 {[%clk 0:02:58]}  Nc6 {[%clk 0:02:47]} 6. Nf3 {[%clk 0:02:57]}  e6 {[%clk 0:02:44]} 7. Bd3 {[%clk 0:02:58]}  Qb6 {[%clk 0:02:41]} 8. Qb3 {[%clk 0:02:57]}  cxd4 {[%clk 0:02:11]} 9. Qxb6 {[%clk 0:02:49]}  axb6 {[%clk 0:02:11]} 10. exd4 {[%clk 0:02:49]}  Na5 {[%clk 0:01:58]} 11. Nbd2 {[%clk 0:02:48]}  Nxd2 {[%clk 0:01:57]} 12. Kxd2 {[%clk 0:02:49]}  f6 {[%clk 0:01:52]} 13. Rhe1 {[%clk 0:02:48]}  Kf7 {[%clk 0:01:51]} 14. h4 {[%clk 0:02:46]}  g6 {[%clk 0:01:48]} 15. g4 {[%clk 0:02:42]}  h6 {[%clk 0:01:42]} 16. g5 {[%clk 0:02:39]}  hxg5 {[%clk 0:01:19]} 17. hxg5 {[%clk 0:02:40]}  Rh3 {[%clk 0:01:18]} 18. Ng1 {[%clk 0:02:13]}  Rh4 {[%clk 0:01:10]} 19. Bg3 {[%clk 0:02:13]}  Rh5 {[%clk 0:00:55]} 20. gxf6 {[%clk 0:02:12]}  Bh6+ {[%clk 0:00:51]} 21. Kc2 {[%clk 0:02:06]}  Kxf6 {[%clk 0:00:51]} 22. Nf3 {[%clk 0:02:05]}  Bd7 {[%clk 0:00:47]} 23. Ne5 {[%clk 0:01:59]}  Be8 {[%clk 0:00:46]} 24. Ng4+ {[%clk 0:01:56]}  Kf7 {[%clk 0:00:44]} 25. Rh1 {[%clk 0:01:48]}  Bg7 {[%clk 0:00:44]} 26. Be5 {[%clk 0:01:36]}  Nc4 {[%clk 0:00:40]} 27. Bxg7 {[%clk 0:01:31]}  Kxg7 {[%clk 0:00:41]} 28. Bxc4 {[%clk 0:01:26]}  dxc4 {[%clk 0:00:40]} 29. Rxh5 {[%clk 0:01:26]}  gxh5 {[%clk 0:00:40]} 30. Ne5 {[%clk 0:01:27]}  b5 {[%clk 0:00:37]} 31. a3 {[%clk 0:01:27]}  Kf6 {[%clk 0:00:34]} 32. Rg1 {[%clk 0:01:21]}  Bc6 {[%clk 0:00:33]} 33. Rg6+ {[%clk 0:01:20]}  Kf5 {[%clk 0:00:33]} 34. Rh6 {[%clk 0:01:16]}  Kg5 {[%clk 0:00:21]} 35. Rxe6 {[%clk 0:01:16]}  h4 {[%clk 0:00:16]} 36. Rg6+ {[%clk 0:01:10]}  Kh5 {[%clk 0:00:14]} 37. Rg7 {[%clk 0:00:51]}  Rh8 {[%clk 0:00:13]} 38. Kd2 {[%clk 0:00:37]}  h3 {[%clk 0:00:13]} 39. Ng6 {[%clk 0:00:34]}  Rh6 {[%clk 0:00:01]} 40. Nf4+ {[%clk 0:00:34]}  Kh4 {[%clk 0:00:02]} 41. Ng6+ {[%clk 0:00:22]}  Kh5 {[%clk 0:00:02]} 42. Nf4+ {[%clk 0:00:21]}  Kh4 {[%clk 0:00:03]} 43. Ng6+ {[%clk 0:00:22]}  Kh5 {[%clk 0:00:02]} 1/2-1/2


[Site "https://www.chess.com"]

[Event "Titled Tuesday Blitz November 07 Early 2023"]
[White "Horak, Martin"]
[Black "Elsa167"]
[WhiteFideId "367095"]
[WhiteElo "2523"]
[BlackElo "2981"]
[Result "0-1"]
[Round "4"]
[TimeControl "180+1"]
[Date "2023.11.07"]
[WhiteClock "0:00:07"]
[BlackClock "0:00:27"]
[Board "109"]

1. d4 {[%clk 0:03:00]}  Nf6 {[%clk 0:02:59]} 2. Nf3 {[%clk 0:03:01]}  e6 {[%clk 0:02:58]} 3. c4 {[%clk 0:03:01]}  c5 {[%clk 0:02:59]} 4. g3 {[%clk 0:02:53]}  cxd4 {[%clk 0:02:56]} 5. Nxd4 {[%clk 0:02:54]}  Qc7 {[%clk 0:02:54]} 6. b3 {[%clk 0:02:48]}  d5 {[%clk 0:02:48]} 7. Nd2 {[%clk 0:02:43]}  e5 {[%clk 0:02:38]} 8. Nb5 {[%clk 0:02:29]}  Qb6 {[%clk 0:02:38]} 9. Bg2 {[%clk 0:02:21]}  Bc5 {[%clk 0:02:23]} 10. O-O {[%clk 0:02:15]}  d4 {[%clk 0:01:56]} 11. Ba3 {[%clk 0:01:56]}  a6 {[%clk 0:01:37]} 12. Bxc5 {[%clk 0:01:53]}  Qxc5 {[%clk 0:01:38]} 13. b4 {[%clk 0:01:53]}  Qb6 {[%clk 0:01:37]} 14. Na3 {[%clk 0:01:31]}  Qxb4 {[%clk 0:01:37]} 15. Nc2 {[%clk 0:01:30]}  Qe7 {[%clk 0:01:37]} 16. e3 {[%clk 0:01:27]}  d3 {[%clk 0:01:18]} 17. Ne1 {[%clk 0:01:22]}  O-O {[%clk 0:01:18]} 18. Nxd3 {[%clk 0:01:10]}  Rd8 {[%clk 0:01:17]} 19. Qc2 {[%clk 0:00:38]}  Bf5 {[%clk 0:01:13]} 20. e4 {[%clk 0:00:37]}  Bg4 {[%clk 0:00:57]} 21. Nb3 {[%clk 0:00:34]}  Nc6 {[%clk 0:00:56]} 22. f3 {[%clk 0:00:28]}  Be6 {[%clk 0:00:49]} 23. c5 {[%clk 0:00:28]}  Rac8 {[%clk 0:00:43]} 24. Rac1 {[%clk 0:00:29]}  Bxb3 {[%clk 0:00:38]} 25. Qxb3 {[%clk 0:00:21]}  Nd4 {[%clk 0:00:38]} 26. Qb2 {[%clk 0:00:17]}  Nd7 {[%clk 0:00:36]} 27. Rf2 {[%clk 0:00:15]}  Nxc5 {[%clk 0:00:32]} 28. Nb4 {[%clk 0:00:13]}  Na4 {[%clk 0:00:27]} 29. Qb1 {[%clk 0:00:07]}  Rxc1+ {[%clk 0:00:27]} 0-1


[Site "https://www.chess.com"]

[Event "Titled Tuesday Blitz November 07 Early 2023"]
[White "dodoucb"]
[Black "Kosteniuk, Alexandra"]
[BlackFideId "4128125"]
[WhiteElo "2483"]
[BlackElo "2683"]
[Result "1/2-1/2"]
[Round "4"]
[TimeControl "180+1"]
[Date "2023.11.07"]
[WhiteClock "0:00:05"]
[BlackClock "0:00:44"]
[Board "115"]

1. d4 {[%clk 0:03:00]}  Nf6 {[%clk 0:02:59]} 2. Nf3 {[%clk 0:03:01]}  g6 {[%clk 0:02:59]} 3. c4 {[%clk 0:03:01]}  Bg7 {[%clk 0:02:59]} 4. Nc3 {[%clk 0:03:02]}  O-O {[%clk 0:02:58]} 5. e4 {[%clk 0:03:01]}  d6 {[%clk 0:02:58]} 6. Be2 {[%clk 0:03:01]}  Nbd7 {[%clk 0:02:57]} 7. O-O {[%clk 0:03:01]}  c5 {[%clk 0:02:58]} 8. Be3 {[%clk 0:02:49]}  b6 {[%clk 0:02:54]} 9. Re1 {[%clk 0:02:45]}  Bb7 {[%clk 0:02:53]} 10. d5 {[%clk 0:02:44]}  a6 {[%clk 0:02:51]} 11. Qd2 {[%clk 0:02:35]}  Ng4 {[%clk 0:02:50]} 12. Bf4 {[%clk 0:02:29]}  Nge5 {[%clk 0:02:28]} 13. Nxe5 {[%clk 0:02:25]}  Nxe5 {[%clk 0:02:28]} 14. Bh6 {[%clk 0:02:11]}  Bc8 {[%clk 0:02:26]} 15. Bxg7 {[%clk 0:02:08]}  Kxg7 {[%clk 0:02:26]} 16. f4 {[%clk 0:02:09]}  Nd7 {[%clk 0:02:26]} 17. Bf3 {[%clk 0:02:00]}  f6 {[%clk 0:02:23]} 18. Bg4 {[%clk 0:01:59]}  b5 {[%clk 0:02:21]} 19. cxb5 {[%clk 0:01:57]}  axb5 {[%clk 0:02:21]} 20. Nxb5 {[%clk 0:01:56]}  Nb6 {[%clk 0:02:21]} 21. Bxc8 {[%clk 0:01:55]}  Qxc8 {[%clk 0:02:22]} 22. Nc3 {[%clk 0:01:53]}  Qb8 {[%clk 0:02:18]} 23. b3 {[%clk 0:01:46]}  Nd7 {[%clk 0:02:17]} 24. Kh1 {[%clk 0:01:38]}  Qb4 {[%clk 0:02:16]} 25. Rad1 {[%clk 0:01:33]}  Ra7 {[%clk 0:02:12]} 26. h4 {[%clk 0:00:49]}  c4 {[%clk 0:01:48]} 27. bxc4 {[%clk 0:00:43]}  Qxc4 {[%clk 0:01:47]} 28. Re3 {[%clk 0:00:43]}  Rc8 {[%clk 0:01:41]} 29. Rh3 {[%clk 0:00:38]}  Ra3 {[%clk 0:01:39]} 30. Rc1 {[%clk 0:00:33]}  Nc5 {[%clk 0:01:37]} 31. Re3 {[%clk 0:00:26]}  Na4 {[%clk 0:01:34]} 32. Ne2 {[%clk 0:00:23]}  Rxa2 {[%clk 0:01:19]} 33. Rxc4 {[%clk 0:00:22]}  Rxd2 {[%clk 0:01:16]} 34. Rxc8 {[%clk 0:00:22]}  Nc5 {[%clk 0:01:16]} 35. Ng3 {[%clk 0:00:20]}  Rf2 {[%clk 0:01:13]} 36. e5 {[%clk 0:00:19]}  Rxf4 {[%clk 0:01:12]} 37. exd6 {[%clk 0:00:19]}  Rxh4+ {[%clk 0:01:12]} 38. Kg1 {[%clk 0:00:19]}  exd6 {[%clk 0:01:13]} 39. Rc7+ {[%clk 0:00:18]}  Kh6 {[%clk 0:01:13]} 40. Ree7 {[%clk 0:00:18]}  Rd4 {[%clk 0:01:11]} 41. Rxh7+ {[%clk 0:00:17]}  Kg5 {[%clk 0:01:12]} 42. Kh2 {[%clk 0:00:10]}  Rxd5 {[%clk 0:01:10]} 43. Ne2 {[%clk 0:00:10]}  f5 {[%clk 0:01:08]} 44. Ng1 {[%clk 0:00:11]}  Rd1 {[%clk 0:01:01]} 45. Nf3+ {[%clk 0:00:11]}  Kf4 {[%clk 0:01:01]} 46. Rcg7 {[%clk 0:00:11]}  Ne4 {[%clk 0:01:00]} 47. Rxg6 {[%clk 0:00:12]}  d5 {[%clk 0:00:55]} 48. Rh4+ {[%clk 0:00:09]}  Ke3 {[%clk 0:00:55]} 49. Re6 {[%clk 0:00:05]}  f4 {[%clk 0:00:47]} 50. Ng5 {[%clk 0:00:04]}  Rd2 {[%clk 0:00:47]} 51. Nxe4 {[%clk 0:00:04]}  dxe4 {[%clk 0:00:48]} 52. Kg1 {[%clk 0:00:03]}  Rd1+ {[%clk 0:00:48]} 53. Kh2 {[%clk 0:00:04]}  Rd2 {[%clk 0:00:47]} 54. Kg1 {[%clk 0:00:04]}  Rd1+ {[%clk 0:00:47]} 55. Kh2 {[%clk 0:00:05]}  Rd2 {[%clk 0:00:44]} 1/2-1/2


[Site "https://www.chess.com"]

[Event "Titled Tuesday Blitz November 07 Early 2023"]
[White "Manukyan, Sargis V."]
[Black "Thomforde-Toates, Noah"]
[WhiteFideId "13303465"]
[BlackFideId "30951992"]
[WhiteElo "2461"]
[BlackElo "2640"]
[Result "0-1"]
[Round "4"]
[TimeControl "180+1"]
[Date "2023.11.07"]
[WhiteClock "0:00:06"]
[BlackClock "0:00:20"]
[Board "118"]

1. d4 {[%clk 0:02:59]}  Nf6 {[%clk 0:02:58]} 2. Nc3 {[%clk 0:03:00]}  d6 {[%clk 0:02:58]} 3. e4 {[%clk 0:02:59]}  g6 {[%clk 0:02:58]} 4. f4 {[%clk 0:03:00]}  Bg7 {[%clk 0:02:58]} 5. Nf3 {[%clk 0:03:00]}  c5 {[%clk 0:02:58]} 6. dxc5 {[%clk 0:03:00]}  Qa5 {[%clk 0:02:58]} 7. Bd3 {[%clk 0:02:56]}  Qxc5 {[%clk 0:02:57]} 8. Qe2 {[%clk 0:02:56]}  Nc6 {[%clk 0:02:57]} 9. Be3 {[%clk 0:02:56]}  Qa5 {[%clk 0:02:57]} 10. h3 {[%clk 0:02:56]}  O-O {[%clk 0:02:56]} 11. O-O {[%clk 0:02:56]}  Nh5 {[%clk 0:02:54]} 12. Qf2 {[%clk 0:02:48]}  b6 {[%clk 0:02:40]} 13. Nd5 {[%clk 0:02:09]}  Be6 {[%clk 0:02:35]} 14. Bd2 {[%clk 0:02:08]}  Qc5 {[%clk 0:02:25]} 15. Be3 {[%clk 0:02:07]}  Qa5 {[%clk 0:02:15]} 16. Nc3 {[%clk 0:01:31]}  Bxc3 {[%clk 0:02:12]} 17. bxc3 {[%clk 0:01:32]}  Nf6 {[%clk 0:02:11]} 18. Ng5 {[%clk 0:01:26]}  Qxc3 {[%clk 0:02:01]} 19. f5 {[%clk 0:01:21]}  Bd7 {[%clk 0:01:57]} 20. Qh4 {[%clk 0:01:16]}  h5 {[%clk 0:01:40]} 21. Nf3 {[%clk 0:01:01]}  Ne5 {[%clk 0:01:32]} 22. Nxe5 {[%clk 0:00:46]}  Qxe5 {[%clk 0:01:33]} 23. Rae1 {[%clk 0:00:40]}  Bb5 {[%clk 0:01:29]} 24. Bh6 {[%clk 0:00:25]}  Bxd3 {[%clk 0:01:27]} 25. cxd3 {[%clk 0:00:25]}  Rfc8 {[%clk 0:01:23]} 26. Qf2 {[%clk 0:00:24]}  Kh7 {[%clk 0:01:19]} 27. Bf4 {[%clk 0:00:21]}  Qc5 {[%clk 0:01:19]} 28. d4 {[%clk 0:00:19]}  Qc2 {[%clk 0:01:13]} 29. Re2 {[%clk 0:00:19]}  Qd3 {[%clk 0:01:13]} 30. fxg6+ {[%clk 0:00:13]}  fxg6 {[%clk 0:01:12]} 31. Re3 {[%clk 0:00:09]}  Qxd4 {[%clk 0:01:08]} 32. e5 {[%clk 0:00:09]}  Nd5 {[%clk 0:00:57]} 33. exd6 {[%clk 0:00:06]}  Nxe3 {[%clk 0:00:41]} 34. Bxe3 {[%clk 0:00:06]}  Qf6 {[%clk 0:00:36]} 35. Qe2 {[%clk 0:00:02]}  Qxd6 {[%clk 0:00:33]} 36. Bf4 {[%clk 0:00:02]}  Qd4+ {[%clk 0:00:32]} 37. Kh2 {[%clk 0:00:03]}  Qd7 {[%clk 0:00:26]} 38. Be5 {[%clk 0:00:02]}  Rf8 {[%clk 0:00:25]} 39. Rd1 {[%clk 0:00:03]}  Qe6 {[%clk 0:00:24]} 40. Qe4 {[%clk 0:00:02]}  Rf5 {[%clk 0:00:24]} 41. Qxa8 {[%clk 0:00:01]}  Qxe5+ {[%clk 0:00:24]} 42. Kh1 {[%clk 0:00:02]}  Qf6 {[%clk 0:00:22]} 43. Qd8 {[%clk 0:00:02]}  Rf1+ {[%clk 0:00:21]} 44. Rxf1 {[%clk 0:00:02]}  Qxf1+ {[%clk 0:00:22]} 45. Kh2 {[%clk 0:00:03]}  Qf4+ {[%clk 0:00:22]} 46. Kh1 {[%clk 0:00:04]}  Qd6 {[%clk 0:00:21]} 47. Qf8 {[%clk 0:00:03]}  Qe6 {[%clk 0:00:21]} 48. Qf3 {[%clk 0:00:03]}  Qxa2 {[%clk 0:00:20]} 49. Qe4 {[%clk 0:00:03]}  Qa1+ {[%clk 0:00:20]} 50. Kh2 {[%clk 0:00:04]}  Qf6 {[%clk 0:00:20]} 51. Qb7 {[%clk 0:00:05]}  Qd6+ {[%clk 0:00:20]} 52. Kh1 {[%clk 0:00:05]}  a5 {[%clk 0:00:21]} 53. Qf3 {[%clk 0:00:05]}  Qe6 {[%clk 0:00:19]} 54. Qb3 {[%clk 0:00:05]}  Qxb3 {[%clk 0:00:18]} 55. Kh2 {[%clk 0:00:05]}  Qb2 {[%clk 0:00:18]} 56. h4 {[%clk 0:00:06]}  a4 {[%clk 0:00:19]} 57. Kh3 {[%clk 0:00:06]}  a3 {[%clk 0:00:19]} 58. Kh2 {[%clk 0:00:07]}  a2 {[%clk 0:00:20]} 59. Kg3 {[%clk 0:00:07]}  a1=Q {[%clk 0:00:20]} 60. Kh2 {[%clk 0:00:08]}  Qaa2 {[%clk 0:00:19]} 61. Kg1 {[%clk 0:00:07]}  Qf2+ {[%clk 0:00:19]} 62. Kh1 {[%clk 0:00:06]}  Qxg2# {[%clk 0:00:20]} 0-1


[Site "https://www.chess.com"]